[Event "III Menorca Open-A 2024"]
[Site "Ciutadella Menorca"]
[Date "2024.04.06"]
[Round "7.5"]
[White "Nihal Sarin"]
[Black "Chigaev, Maksim"]
[Result "1/2-1/2"]
[ECO "A16"]
[WhiteElo "2698"]
[BlackElo "2617"]
[Annotator "TA"]
[PlyCount "101"]
[EventDate "2024.04.02"]
[EventType "swiss"]
[EventCountry "ESP"]
[SourceTitle "playchess.com"]
[Source "ChessBase"]
[SourceQuality "1"]
[TimeControl "5400+30"]

{[%evp 11,101,11,21,12,32,11,42,72,104,108,115,102,101,96,100,92,83,87,117,104,109,100,104,114,113,100,97,90,89,90,120,120,176,168,164,68,60,74,72,49,52,0,0,0,0,0,0,0,0,0,0,0,0,-4,-8,-140,-170,-237,-69,-126,-114,-476,-401,-670,-655,-607,-494,-591,0,-612,-406,-867,-773,-835,-885,-897,-889,-875,-767,-556,0,0,0,0,0,0,0,0,0,0,0,0]} 1. Nf3 {[%emt 0:05:32]} Nf6 {[%emt 0:00:11]} 2. g3 {[%emt 0:01:42]} g6 {[%emt 0:00:13]} 3. c4 {[%emt 0:03:28]} Bg7 {[%emt 0:00:10]} 4. Nc3 {[%emt 0:00:15]} O-O {[%emt 0:00:26]} 5. Bg2 {[%emt 0:00:09]} d5 {[%emt 0:04:10]} 6. cxd5 {[%emt 0:00:18]} Nxd5 {[%emt 0:00:06]} 7. h4 {[%emt 0:01:12]} h5 {[%emt 0:00:27]} 8. Ng5 {[%emt 0:10:24]} Nb6 {[%emt 0:02:58] [#]} 9. g4 $1 {[%emt 0:04:44] White is slightly better.} Bxg4 {[%emt 0:01:17]} (9... hxg4 10. h5) 10. Bxb7 {[%emt 0:00:19]} N8d7 {[%emt 0:04:13][%cal Bb8d7,Bd7e5,Be5c6,Bc6d4][%mdl 32]} 11. Bxa8 {[%emt 0:00:36]} Qxa8 {[%emt 0:00:23][%cal Ra8h1]} 12. f3 {[%emt 0:00:04]} Ne5 {[%emt 0:05:29]} 13. d3 {[%emt 0:03:25]} Rd8 {[%emt 0:07:01][%cal Od8d3]} 14. O-O {[%emt 0:10:57]} Bf5 {[%emt 0:01:32]} 15. Bf4 {[%emt 0:06:33]} c5 {[%emt 0:15:56]} 16. Qb3 $1 {[%emt 0:00:14]} Rf8 {[%emt 0:14:32]} 17. Rac1 {[%emt 0:05:26]} Nc6 {[%emt 0:02:02]} 18. Kg2 {[%emt 0:16:40]} Nd4 {[%emt 0:05:35]} 19. Qa3 {[%emt 0:04:52]} e5 {[%emt 0:02:12]} 20. Bg3 {[%emt 0:01:05]} c4 {[%emt 0:01:07]} 21. e3 $1 {[%emt 0:06:01]} f6 {[%emt 0:19:36]} (21... cxd3 $16 {was called for.} 22. exd4 d2) 22. Nge4 $1 $18 {[%emt 0:00:57]} Ne6 {[%emt 0:00:12]} 23. Na4 {[%emt 0:05:11]} ({Better is} 23. Rcd1 $18) 23... cxd3 $1 $14 {[%emt 0:03:45]} 24. Nxb6 {[%emt 0:01:23]} axb6 {[%emt 0:00:02]} 25. Qxa8 {[%emt 0:04:20]} Rxa8 {[%emt 0:00:02]} 26. a3 {[%emt 0:00:01]} (26. Rc6 $14) 26... Bxe4 $11 {[%emt 0:03:09]} 27. fxe4 {[%emt 0:00:01]} Nc5 {[%emt 0:01:22]} 28. Rfd1 {[%emt 0:02:19]} Rd8 {[%emt 0:02:12]} 29. Rc4 {[%emt 0:01:45]} f5 $1 {[%emt 0:00:05]} 30. exf5 {[%emt 0:01:47]} gxf5 {[%emt 0:00:01]} 31. Be1 {[%emt 0:00:26][%cal Oe1a5]} e4 {[%emt 0:00:12][%cal Oc5d7]} 32. Bc3 {[%emt 0:00:10]} Bxc3 {[%emt 0:02:47]} 33. Rxc3 {[%emt 0:00:05][%mdl 4096] Endgame. KRR-KRN} (33. bxc3 $11 {was the only way to keep the balance.} f4 34. exf4) 33... Kf7 $17 {[%emt 0:00:38]} 34. Kf2 {[%emt 0:01:30] [#]} (34. Rdc1 $142) 34... Rg8 $2 {[%emt 0:00:37]} (34... Nd7 $1 $19 {[%cal Rd7e5] ...Ne5 is the strong threat.} 35. Rc7 Ke6) 35. b4 {[%emt 0:03:11] [#]} (35. Rdc1 $15) 35... Nd7 $1 {[%emt 0:00:06][%mdl 1024] Black has strong compensation.} 36. a4 $2 {[%emt 0:00:54][%mdl 8192]} (36. Rc7 $17 Ke6 37. Rb7) 36... Ne5 {[%emt 0:00:11] White must now prevent ...Ng4+.} 37. Re1 {[%emt 0:00:11]} (37. Kf1 $142 Rg3 38. a5 bxa5 (38... Rxe3 $2 {too greedy.} 39. axb6 Rf3+ 40. Ke1 $16) 39. bxa5) 37... Ng4+ $19 {[%emt 0:02:51]} 38. Kf1 {[%emt 0:00:01]} Nh2+ {[%emt 0:00:22]} 39. Kf2 {[%emt 0:00:01]} Ng4+ {[%emt 0:00:05]} 40. Kf1 {[%emt 0:00:03]} Rd8 {[%emt 0:01:35]} 41. a5 {[%emt 0:00:52]} (41. Ra3 $142 f4 42. exf4) 41... bxa5 {[%emt 0:00:08]} 42. bxa5 {[%emt 0:00:01] [#]} Nxe3+ $1 {[%emt 0:00:36][%mdl 512]} 43. Rxe3 {[%emt 0:01:18]} d2 {[%emt 0:00:01]} 44. Re1 {[%emt 0:00:05]} dxe1=Q+ {[%emt 0:00:15]} ({Worse is} 44... d1=R 45. a6 $11) 45. Kxe1 {[%emt 0:00:06] KR-KR} Ke6 $2 {[%emt 0:00:40]} (45... Ra8 $19 46. Rc5 Ke6) 46. a6 $11 {[%emt 0:01:00] The position is equal.} f4 {[%emt 0:01:03]} 47. a7 {[%emt 0:01:10]} Ra8 {[%emt 0:00:10]} 48. Ra3 {[%emt 0:00:07]} Kf5 {[%emt 0:00:06] Strongly threatening ...Kg4.} 49. Kf2 {[%emt 0:00:32]} Kg4 {[%emt 0:01:12]} 50. Ra4 $1 {[%emt 0:00:10]} Kxh4 {[%emt 0:00:32] aiming for ...Kg4.} 51. Rxe4 {[%emt 0:00:10] Quite a comeback for White.   Weighted Error Value: White=0.40/Black=0.37.  Loses game:     	White=1     	---        Missed win:     	---       	Black=1      Mistake:       	White=7     	Black=1      Inaccurate:     	---       	Black=5      OK:         	White=13    	Black=11     Best:        	White=4     	Black=2      Strong:       	White=4     	Black=3} 1/2-1/2

[Event "III Menorca Open-A 2024"]
[Site "Ciutadella Menorca"]
[Date "2024.04.06"]
[Round "7.6"]
[White "Lamard, Guillaume"]
[Black "Aravindh, Chithambaram VR."]
[Result "1/2-1/2"]
[ECO "C54"]
[WhiteElo "2495"]
[BlackElo "2662"]
[Annotator "TA"]
[PlyCount "46"]
[EventDate "2024.04.02"]
[EventType "swiss"]
[EventCountry "ESP"]
[SourceTitle "playchess.com"]
[Source "ChessBase"]
[SourceQuality "1"]
[TimeControl "5400+30"]

{[%evp 14,46,19,10,38,15,11,22,0,0,2,6,16,20,36,13,26,22,36,39,33,25,27,17,23,18,28,19,22,25,19,22,24,0,2]} 1. e4 {[%emt 0:00:03]} e5 {[%emt 0:01:01]} 2. Nf3 {[%emt 0:00:04]} Nc6 {[%emt 0:00:05]} 3. Bc4 {[%emt 0:00:03]} Nf6 {[%emt 0:00:24]} 4. d3 {[%emt 0:00:03]} Bc5 {[%emt 0:00:27]} 5. c3 {[%emt 0:00:12]} d6 {[%emt 0:00:25]} 6. O-O {[%emt 0:00:09]} Bb6 {[%emt 0:01:43]} 7. Nbd2 {[%emt 0:02:38]} Ne7 {[%emt 0:02:46]} 8. Bb3 {[%emt 0:03:34]} c6 {[%emt 0:10:00]} 9. h3 {[%emt 0:04:04]} Ng6 {[%emt 0:01:05]} 10. Re1 {[%emt 0:00:20]} O-O {[%emt 0:00:22]} 11. d4 {[%emt 0:00:16]} Re8 {[%emt 0:07:40]} 12. Bc2 {[%emt 0:02:06]} exd4 {[%emt 0:26:51]} 13. cxd4 {[%emt 0:00:56]} Be6 {[%emt 0:00:06]} 14. Nf1 {[%emt 0:05:18]} d5 {[%emt 0:00:15]} 15. e5 {[%emt 0:00:47]} Ne4 {[%emt 0:00:06]} 16. Ng3 {[%emt 0:01:30]} Nxg3 {[%emt 0:09:29]} 17. fxg3 {[%emt 0:00:51]} c5 {[%emt 0:00:06]} 18. Be3 {[%emt 0:11:45]} cxd4 {[%emt 0:01:28]} 19. Bxd4 {[%emt 0:00:21]} Rc8 {[%emt 0:00:09]} 20. Kh2 {[%emt 0:02:35]} Bxd4 {[%emt 0:06:00]} 21. Nxd4 {[%emt 0:00:07]} Qb6 {[%emt 0:00:05]} 22. Bxg6 {[%emt 0:01:19]} hxg6 {[%emt 0:00:16]} 23. Qd2 {[%emt 0:03:25]} Bf5 {[%emt 0:03:59] Weighted Error Value: White=0.05 (flawless) /Black=0.05 (flawless) .  OK:         	White=6     	Black=6} 1/2-1/2

[Event "III Menorca Open-A 2024"]
[Site "Ciutadella Menorca"]
[Date "2024.04.06"]
[Round "7.7"]
[White "Alekseenko, Kirill"]
[Black "Siddharth, Jagadeesh"]
[Result "1-0"]
[ECO "C02"]
[WhiteElo "2650"]
[BlackElo "2491"]
[Annotator "TA"]
[PlyCount "97"]
[EventDate "2024.04.02"]
[EventType "swiss"]
[EventCountry "ESP"]
[SourceTitle "playchess.com"]
[Source "ChessBase"]
[SourceQuality "1"]
[TimeControl "5400+30"]

{[%evp 17,97,29,7,0,97,89,81,94,84,87,91,79,89,28,48,57,49,65,66,62,51,43,28,28,30,10,85,83,85,85,90,86,118,78,122,125,124,71,72,63,60,56,81,84,129,114,135,141,254,237,253,272,295,264,270,256,253,243,234,251,303,263,405,435,630,433,436,436,553,548,677,601,800,672,792,797,704,690,29974,29974,7185,7185]} 1. e4 {[%emt 0:00:17]} e6 {[%emt 0:06:24]} 2. d4 {[%emt 0:00:33]} d5 {[%emt 0:00:05]} 3. e5 {[%emt 0:00:18]} c5 {[%emt 0:00:09]} 4. c3 {[%emt 0:00:11]} Nc6 {[%emt 0:00:17]} 5. Nf3 {[%emt 0:00:21]} Nge7 {[%emt 0:00:09]} 6. Na3 {[%emt 0:04:57]} Bd7 {[%emt 0:00:09] C02: French: Advance Variation.} 7. Nc2 {[%emt 0:02:03]} Qa5 {[%emt 0:00:07]} 8. Be2 $146 {[%emt 0:12:47]} ({Predecessor:} 8. a3 Nxd4 9. Ncxd4 cxd4 10. Nxd4 Nc6 11. Nf3 Qc7 12. Bf4 f6 13. Bb5 Nxe5 14. Nxe5 fxe5 {½-½ Yu,Y (2720)-Shimanov,A (2578) Chessable Masters Play In rapid 2024 (3)}) 8... Nxd4 {[%emt 0:06:53]} 9. Ncxd4 {[%emt 0:03:47]} cxd4 {[%emt 0:00:08]} 10. Qxd4 {[%emt 0:01:16]} Bb5 {[%emt 0:06:35]} (10... Nf5 $11 {remains equal.} 11. Qf4 h6) 11. Qc5 $1 $16 {[%emt 0:03:24]} a6 {[%emt 0:00:09]} 12. b4 $1 {[%emt 0:02:42]} Qd8 {[%emt 0:00:20]} ({Don't go for} 12... Qa4 $2 13. Bd1 $18) 13. Bxb5+ {[%emt 0:00:21]} axb5 {[%emt 0:00:04]} 14. Qxb5+ {[%emt 0:00:43]} Qd7 {[%emt 0:00:01]} 15. Qd3 {[%emt 0:16:57]} (15. Qxd7+ $16 Kxd7 16. a4) 15... Ng6 {[%emt 0:02:53]} 16. h4 {[%emt 0:03:50]} h5 {[%emt 0:01:00]} 17. O-O {[%emt 0:00:22]} Be7 {[%emt 0:00:06]} 18. g3 {[%emt 0:00:13]} O-O {[%emt 0:00:09]} 19. Re1 {[%emt 0:01:50]} Rfc8 {[%emt 0:01:57]} 20. Bb2 {[%emt 0:00:46]} Bd8 {[%emt 0:04:06]} 21. Nd2 {[%emt 0:07:28]} Ne7 {[%emt 0:10:58] [#]} (21... Qa4 $1 $11) 22. c4 $1 $16 {[%emt 0:02:15]} Qa4 {[%emt 0:00:27]} 23. a3 {[%emt 0:01:11]} Qa6 {[%emt 0:05:44]} 24. Rac1 {[%emt 0:00:59]} Bb6 {[%emt 0:00:06]} 25. Qb3 {[%emt 0:05:34]} dxc4 {[%emt 0:00:07]} 26. Nxc4 {[%emt 0:01:01]} Nf5 {[%emt 0:00:06]} 27. Kg2 {[%emt 0:03:29]} (27. Nd6 $142 Rxc1 28. Bxc1 Nxd6 29. exd6) 27... Bd4 $16 {[%emt 0:03:19]} 28. Bxd4 {[%emt 0:01:59]} Nxd4 {[%emt 0:00:02]} 29. Qd3 {[%emt 0:00:05]} Nf5 {[%emt 0:04:16]} 30. Qe4 {[%emt 0:01:47]} Rd8 {[%emt 0:02:49]} 31. Red1 {[%emt 0:00:44]} Rxd1 {[%emt 0:00:11]} 32. Rxd1 {[%emt 0:00:03]} Rc8 {[%emt 0:00:06]} (32... b5 $16 {was necessary.} 33. Na5 Rc8) 33. Nd6 $18 {[%emt 0:01:45]} Nxd6 {[%emt 0:07:50]} 34. exd6 {[%emt 0:00:09]} (34. Rxd6 Qb5 35. a4 Qxa4 $11) 34... Rd8 {[%emt 0:00:05]} 35. d7 {[%emt 0:00:59]} Qa4 {[%emt 0:01:22]} 36. Qd4 {[%emt 0:01:02]} Qc6+ {[%emt 0:00:37]} 37. Kg1 {[%emt 0:00:26]} f6 {[%emt 0:04:44] [#]} 38. Qd3 $1 {[%emt 0:00:47]} Kf7 {[%emt 0:02:27]} 39. b5 {[%emt 0:00:04]} Qc7 {[%emt 0:10:00]} (39... Qc5 $142 40. a4 Qb4) 40. a4 $18 {[%emt 0:00:19]} Kf8 {[%emt 0:00:12]} (40... Kg8 $142 41. Qd2 Kf7) 41. Kg2 {[%emt 0:03:09]} Kf7 {[%emt 0:00:15]} 42. Rd2 {[%emt 0:01:40]} e5 {[%emt 0:04:20]} 43. Qf5 {[%emt 0:02:20]} Ke7 {[%emt 0:00:06]} 44. Qh7 {[%emt 0:01:08]} ({Less strong is} 44. Qxh5 Rxd7 45. Rxd7+ Qxd7 $18) 44... Qa5 {[%emt 0:04:08]} 45. Qxg7+ {[%emt 0:01:35]} Ke6 {[%emt 0:00:01]} 46. Rd3 {[%emt 0:00:58]} Qxa4 {[%emt 0:00:05]} 47. Rf3 {[%emt 0:00:19]} Qxb5 {[%emt 0:00:57]} 48. Qxf6+ {[%emt 0:02:15]} Kxd7 {[%emt 0:00:02]} 49. Qf7+ {[%emt 0:00:16]} 1-0

[Event "III Menorca Open-A 2024"]
[Site "Ciutadella Menorca"]
[Date "2024.04.06"]
[Round "7.8"]
[White "Murzin, Volodar"]
[Black "Szpar, Milosz"]
[Result "1/2-1/2"]
[ECO "C02"]
[WhiteElo "2632"]
[BlackElo "2495"]
[Annotator "TA"]
[PlyCount "44"]
[EventDate "2024.04.02"]
[EventType "swiss"]
[EventCountry "ESP"]
[SourceTitle "playchess.com"]
[Source "ChessBase"]
[SourceQuality "1"]
[TimeControl "5400+30"]

{[%evp 14,44,19,19,31,19,19,10,16,17,24,8,8,11,10,13,27,-13,0,-27,0,0,0,4,0,0,0,0,3,0,0,0,-14]} 1. e4 {[%emt 0:02:13]} e6 {[%emt 0:00:24]} 2. d4 {[%emt 0:00:28]} d5 {[%emt 0:00:07]} 3. e5 {[%emt 0:00:15]} c5 {[%emt 0:00:14]} 4. c3 {[%emt 0:00:05]} Nc6 {[%emt 0:00:31]} 5. Nf3 {[%emt 0:00:12]} Bd7 {[%emt 0:00:18]} 6. Be2 {[%emt 0:00:12]} Nge7 {[%emt 0:00:12][%cal Bg8e7,Be7g6,Bg6h8,Bh8f7,Bf7d6,Bd6f5][%mdl 32]} 7. O-O {[%emt 0:00:12]} Ng6 {[%emt 0:00:09]} 8. g3 {[%emt 0:00:23]} Be7 {[%emt 0:00:35]} 9. h4 {[%emt 0:00:38][%cal Bh2h4,Bh4h5][%mdl 32]} cxd4 {[%emt 0:00:23]} 10. cxd4 {[%emt 0:00:07]} O-O $1 {[%emt 0:00:12]} 11. h5 {[%emt 0:01:35]} Nh8 {[%emt 0:00:08]} 12. Nc3 {[%emt 0:10:07]} f6 {[%emt 0:00:17]} 13. exf6 {[%emt 0:00:40]} Bxf6 {[%emt 0:00:07]} 14. Be3 {[%emt 0:00:49]} Nf7 {[%emt 0:00:24]} 15. Re1 {[%emt 0:24:27]} Be8 {[%emt 0:07:04]} 16. Nh2 {[%emt 0:11:19]} Nd6 {[%emt 0:03:10]} 17. Bg4 {[%emt 0:00:26] The position is equal.} Bf7 {[%emt 0:03:52]} 18. Nf3 {[%emt 0:04:55]} Nf5 {[%emt 0:04:01]} 19. Qd2 {[%emt 0:06:44]} h6 {[%emt 0:12:42]} 20. Ne2 {[%emt 0:03:42]} Re8 {[%emt 0:16:24]} 21. Nf4 {[%emt 0:03:45]} Nd6 {[%emt 0:09:49]} 22. Rad1 {[%emt 0:11:04]} Nc4 {[%emt 0:01:54] Not much happened in this game.   Weighted Error Value: White=0.05 (flawless) /Black=0.04 (flawless) .  Inaccurate:     	White=2     	Black=1      OK:         	White=5     	Black=8      Best:        	White=1     	---        Strong:       	---       	Black=1} 1/2-1/2

[Event "III Menorca Open-A 2024"]
[Site "Ciutadella Menorca"]
[Date "2024.04.06"]
[Round "7.9"]
[White "Karthik Venkataraman"]
[Black "Xiao, Tong(Qd)"]
[Result "1/2-1/2"]
[ECO "B41"]
[WhiteElo "2609"]
[BlackElo "2484"]
[Annotator "TA"]
[PlyCount "147"]
[EventDate "2024.04.02"]
[EventType "swiss"]
[EventCountry "ESP"]
[SourceTitle "playchess.com"]
[Source "ChessBase"]
[SourceQuality "1"]
[TimeControl "5400+30"]

{[%evp 71,147,0,0,0,0,0,0,0,0,0,0,0,0,0,0,0,0,0,0,0,0,0,0,0,0,0,0,0,0,0,0,0,0,0,0,0,0,0,0,0,0,0,0,0,0,0,0,0,0,0,0,0,0,0,0,0,0,0,0,0,0,0,0,0,0,0,0,0,0,0,0,0,0,0,0,0,0,0]} 1. e4 {[%emt 0:00:47]} c5 {[%emt 0:00:10]} 2. Nf3 {[%emt 0:00:07]} e6 {[%emt 0:00:07]} 3. a3 {[%emt 0:00:44]} a6 {[%emt 0:03:51]} 4. d4 {[%emt 0:00:53]} cxd4 {[%emt 0:00:05]} 5. Nxd4 {[%emt 0:00:04]} Nf6 {[%emt 0:00:07]} 6. Nc3 {[%emt 0:00:22] B41: Sicilian: Kan Variation: 5 c4.} d5 {[%emt 0:00:07]} 7. exd5 {[%emt 0:00:56]} Nxd5 {[%emt 0:00:05]} 8. Nxd5 {[%emt 0:01:20]} Qxd5 {[%emt 0:00:07]} 9. Be3 {[%emt 0:00:06]} Qa5+ $146 {[%emt 0:00:11]} ({Predecessor:} 9... e5 10. c4 Qd7 11. Ne2 Nc6 12. Nc3 Nd4 13. Bd3 Bc5 14. b4 Ba7 15. Qh5 Nc6 {1-0 Antipov,M (2607)-Quparadze,G (2476) EU-ch 21st Reykjavik 2021 (2)}) 10. Qd2 {[%emt 0:00:29]} Qxd2+ {[%emt 0:01:19]} 11. Kxd2 {[%emt 0:00:19]} b6 {[%emt 0:00:11]} 12. Be2 {[%emt 0:01:36]} Bb7 {[%emt 0:00:13]} 13. Bf3 {[%emt 0:00:15]} Bxf3 {[%emt 0:00:05]} 14. Nxf3 {[%emt 0:00:12]} Nd7 {[%emt 0:00:28]} 15. c4 {[%emt 0:06:10]} Bc5 {[%emt 0:07:20]} 16. Bxc5 {[%emt 0:03:37]} Nxc5 {[%emt 0:00:20]} 17. Ke3 {[%emt 0:00:07]} Ke7 {[%emt 0:03:48]} 18. Rhd1 {[%emt 0:02:32]} Rhc8 {[%emt 0:03:59]} 19. Rac1 {[%emt 0:10:54]} Rc7 {[%emt 0:03:38]} 20. Rc2 {[%emt 0:02:47]} Rac8 {[%emt 0:03:21]} 21. Rcd2 {[%emt 0:08:14]} f6 {[%emt 0:06:23]} 22. Nd4 {[%emt 0:01:38]} g6 {[%emt 0:12:17]} 23. f4 {[%emt 0:00:33]} Nb7 {[%emt 0:01:58]} 24. b3 {[%emt 0:01:38]} Nd6 {[%emt 0:01:48]} 25. g4 {[%emt 0:08:14]} b5 {[%emt 0:04:15]} 26. Nf3 {[%emt 0:02:08]} Nf7 {[%emt 0:01:44]} 27. cxb5 {[%emt 0:01:15]} axb5 {[%emt 0:00:05]} 28. Nd4 {[%emt 0:00:14]} Rc3+ {[%emt 0:01:08]} 29. Kf2 {[%emt 0:03:09]} Ra8 {[%emt 0:09:56]} 30. b4 {[%emt 0:18:19]} Rcxa3 {[%emt 0:00:39]} 31. Nxb5 {[%emt 0:00:05]} Ra2 {[%emt 0:00:17]} 32. Nd4 {[%emt 0:01:55]} Nd6 {[%emt 0:01:23]} 33. Nc6+ {[%emt 0:00:41]} Kd7 {[%emt 0:01:46]} 34. Na5 {[%emt 0:00:11]} Rxd2+ {[%emt 0:00:05]} 35. Rxd2 {[%emt 0:00:01]} Kc7 {[%emt 0:01:15]} 36. Rc2+ {[%emt 0:00:01]} Kd7 {[%emt 0:00:05]} 37. Rd2 {[%emt 0:00:02]} Kc7 {[%emt 0:00:04]} 38. Rc2+ {[%emt 0:03:29]} Kd7 {[%emt 0:00:01]} 39. Nb3 {[%emt 0:00:07]} Ne4+ {[%emt 0:06:09]} 40. Ke3 {[%emt 0:03:16]} Ra3 {[%emt 0:00:06]} 41. Rb2 {[%emt 0:00:02]} Nc3 {[%emt 0:01:16]} 42. Kd4 {[%emt 0:01:50]} Nd5 {[%emt 0:00:22]} 43. Nc5+ {[%emt 0:02:07]} Kd6 {[%emt 0:03:15]} 44. Ne4+ {[%emt 0:01:12]} Kd7 {[%emt 0:01:23]} 45. f5 {[%emt 0:07:19]} gxf5 {[%emt 0:00:19]} 46. gxf5 {[%emt 0:00:02]} exf5 {[%emt 0:00:10]} 47. Nc5+ {[%emt 0:00:04]} Kd6 {[%emt 0:00:10]} 48. Nb7+ {[%emt 0:00:04]} Kc7 {[%emt 0:00:23]} 49. Kxd5 {[%emt 0:00:55]} Kxb7 {[%emt 0:26:46]} 50. Ke6 {[%emt 0:03:36]} f4 {[%emt 0:00:00]} 51. Kxf6 {[%emt 0:00:46]} Rf3 {[%emt 0:00:00]} 52. Kf5 {[%emt 0:04:08]} Kb6 {[%emt 0:00:00]} 53. Rd2 {[%emt 0:02:46]} Kb5 {[%emt 0:00:00]} 54. Kg4 {[%emt 0:00:37]} Rf1 {[%emt 0:00:00]} 55. Rd4 $1 {[%emt 0:00:02]} f3 {[%emt 0:00:00]} 56. Rf4 {[%emt 0:00:20]} Ka4 {[%emt 0:00:00]} 57. Kg3 {[%emt 0:02:04]} Kb5 {[%emt 0:00:00]} 58. Rh4 {[%emt 0:00:10]} Ka4 {[%emt 0:00:00]} 59. h3 {[%emt 0:01:42]} Kb5 {[%emt 0:00:00]} 60. Rf4 {[%emt 0:00:24]} Ka4 {[%emt 0:00:00]} 61. Kg4 {[%emt 0:00:15]} Kb5 {[%emt 0:00:00]} 62. Kg3 {[%emt 0:00:56]} Ka4 {[%emt 0:00:00]} 63. Kh4 {[%emt 0:00:30]} Kb5 {[%emt 0:00:00]} 64. Kh5 {[%emt 0:00:16]} Ka4 {[%emt 0:00:00]} 65. Kg4 {[%emt 0:00:32]} Kb5 {[%emt 0:00:00]} 66. Kh4 {[%emt 0:00:14]} Ka4 {[%emt 0:00:00]} 67. Kg3 {[%emt 0:00:09]} Kb5 {[%emt 0:00:00]} 68. Rh4 {[%emt 0:00:03]} Ka4 {[%emt 0:00:00]} 69. Rxh7 {[%emt 0:00:19]} Kxb4 {[%emt 0:00:00]} 70. Rh5 {[%emt 0:00:05]} Kc4 {[%emt 0:00:00]} 71. Ra5 {[%emt 0:02:25]} Kd3 {[%emt 0:00:00]} 72. h4 $1 {[%emt 0:00:26]} Ke4 {[%emt 0:00:00]} 73. Ra4+ {[%emt 0:00:15]} Ke3 {[%emt 0:00:00]} 74. Ra3+ {[%emt 0:00:04]} 1/2-1/2

[Event "III Menorca Open-A 2024"]
[Site "Ciutadella Menorca"]
[Date "2024.04.06"]
[Round "7.10"]
[White "Balakrishnan, Praveen"]
[Black "Pranav Vijay"]
[Result "1/2-1/2"]
[ECO "E48"]
[WhiteElo "2500"]
[BlackElo "2252"]
[Annotator "TA"]
[PlyCount "62"]
[EventDate "2024.04.02"]
[EventType "swiss"]
[EventCountry "ESP"]
[SourceTitle "playchess.com"]
[Source "ChessBase"]
[SourceQuality "1"]
[TimeControl "5400+30"]

{[%evp 11,62,0,10,0,-4,-4,-6,-7,-18,-22,-19,-15,-25,-21,-12,-8,-14,-8,-13,-16,-13,-14,20,8,6,0,23,20,24,18,26,0,0,2,3,6,253,254,237,213,368,-70,248,199,270,231,258,0,519,487,2310,562,615]} 1. d4 {[%emt 0:17:49]} Nf6 {[%emt 0:00:14]} 2. c4 {[%emt 0:00:06]} e6 {[%emt 0:00:09]} 3. Nc3 {[%emt 0:00:06]} Bb4 {[%emt 0:00:12]} 4. e3 {[%emt 0:00:06]} O-O {[%emt 0:00:35]} 5. Bd3 {[%emt 0:00:06]} d5 {[%emt 0:00:45]} 6. cxd5 {[%emt 0:00:17]} exd5 {[%emt 0:00:09]} 7. a3 {[%emt 0:00:08]} Bd6 {[%emt 0:00:47]} 8. Qc2 {[%emt 0:00:10]} c6 {[%emt 0:05:45]} 9. Nge2 {[%emt 0:00:59] The position is equal.} Re8 {[%emt 0:00:42]} 10. Bd2 {[%emt 0:01:34]} b6 {[%emt 0:07:34]} 11. f3 {[%emt 0:00:56]} c5 {[%emt 0:02:23]} 12. g4 {[%emt 0:00:55] g5 would now be deadly.} c4 {[%emt 0:22:27]} 13. Bf5 {[%emt 0:00:27]} Bxf5 {[%emt 0:01:07]} 14. Qxf5 {[%emt 0:00:09][%cal Og4g5] aiming for g5!} g6 {[%emt 0:05:08]} 15. Qg5 {[%emt 0:00:15][%cal Oe2f4]} Nc6 {[%emt 0:50:03]} 16. O-O {[%emt 0:23:33][%cal Oe2f4]} b5 17. Nf4 {[%emt 0:51:24]} Bxf4 {[%emt 0:00:00]} 18. Qxf4 {[%emt 0:00:00][%cal Od2e1]} b4 {[%emt 0:00:00]} 19. Nb5 {[%emt 0:00:00]} bxa3 20. Rxa3 {[%emt 0:00:00][%cal Ba1a3,Ba3a7,Ba7c7][%mdl 32] Hoping for Nc7.} Rb8 {[%emt 0:00:00]} 21. Nxa7 {[%emt 0:00:00]} Nxa7 {[%emt 0:00:00]} (21... Rxb2 $2 {too greedy.} 22. Nxc6 Qd7 23. Qxf6 $18) 22. Rxa7 {[%emt 0:00:00] Ba5 is the strong threat.} Rxb2 {[%emt 0:00:00]} 23. Bc3 {[%emt 0:00:00]} Rb3 {[%emt 0:00:00]} (23... Rb5 $11 {and Black has nothing to worry.}) 24. Ba5 $1 $18 {[%emt 0:00:00]} Qb8 {[%emt 0:00:00] [#]} 25. Rc7 $40 {[%emt 0:00:00][%mdl 128] White attacks with force.} Ra3 $2 {[%emt 0:00:00]} (25... Re6 {might work better.}) 26. g5 $2 {[%emt 0:00:00]} ({White must play} 26. Qxf6 $18 Rf8 27. Qb6) 26... Re6 $2 {[%emt 0:00:00][%mdl 8192]} (26... Rxa5 $15 {keeps the upper hand.} 27. gxf6 Re6) 27. Bd2 {[%emt 0:00:27]} Ra2 {[%emt 0:00:00]} (27... h6 {was called for.} 28. gxf6 Ra2) 28. Rf2 {[%emt 0:00:50]} ({Inferior is} 28. Bc1 Nd7 $11) 28... c3 {[%emt 0:00:00] [#]} 29. Bxc3 {[%emt 0:00:00]} ({Only move:} 29. Bc1 $1 $18 Ra8 30. gxf6) 29... Rxf2 {[%emt 0:00:00][%mdl 8192]} (29... Qb1+ $11 30. Kg2 Rxf2+ 31. Kxf2 Qc2+ 32. Kf1 Qd3+ 33. Kf2 Qc2+ 34. Kf1 Qd3+ 35. Kf2 Qc2+) 30. Kxf2 {[%emt 0:00:00]} Qb1 {[%emt 0:00:00]} (30... Qd8 $142 31. gxf6 Rxf6) 31. Bd2 {[%emt 0:05:43]} (31. gxf6 $142 {Rc8+ would kill now.} Qb8 32. Rc5) 31... h6 {[%emt 0:00:00][%mdl 32768] Weighted Error Value: White=0.61/Black=0.79.  Loses game:     	---       	Black=3      Missed win:     	White=2     	---        Mistake:       	White=1     	Black=3      Inaccurate:     	---       	Black=1      OK:         	White=9     	Black=7      Best:        	---       	Black=4      Strong:       	White=1     	---       . An unexpected result.} 1/2-1/2